[Event "Blixt-SM 2025"]
[Site "Norrköping, Sweden"]
[Date "2025.09.26"]
[Round "2.8"]
[White "Berovski, Krum"]
[Black "Angskog, Kent"]
[Result "1-0"]
[TimeControl "3 min + 2 sec/move"]
[WhiteElo "2344"]
[BlackElo "2118"]

1. d4 {[%clk 00:03:01]} {[%emt 00:00:02]} Nf6 {[%clk 00:03:02]} {[%emt
00:00:02]} 2. c4 {[%clk 00:03:02]} {[%emt 00:00:02]} a6 {[%clk 00:03:03]}
{[%emt 00:00:01]} 3. Nf3 {[%clk 00:03:01]} {[%emt 00:00:03]} c5 {[%clk
00:03:03]} {[%emt 00:00:02]} 4. d5 {[%clk 00:03:00]} {[%emt 00:00:02]} b5
{[%clk 00:03:04]} {[%emt 00:00:02]} 5. b3 {[%clk 00:02:54]} {[%emt 00:00:08]}
d6 {[%clk 00:02:57]} {[%emt 00:00:08]} 6. a4 {[%clk 00:02:45]} {[%emt
00:00:12]} bxc4 {[%clk 00:02:53]} {[%emt 00:00:06]} 7. bxc4 {[%clk 00:02:46]}
{[%emt 00:00:01]} g6 {[%clk 00:02:52]} {[%emt 00:00:03]} 8. Bb2 {[%clk
00:02:45]} {[%emt 00:00:03]} Bg7 {[%clk 00:02:52]} {[%emt 00:00:01]} 9. Nbd2
{[%clk 00:02:38]} {[%emt 00:00:10]} O-O {[%clk 00:02:47]} {[%emt 00:00:07]} 10.
a5 {[%clk 00:02:38]} {[%emt 00:00:02]} Bf5 {[%clk 00:02:30]} {[%emt 00:00:18]}
11. Nh4 {[%clk 00:02:28]} {[%emt 00:00:13]} Bc8 {[%clk 00:02:19]} {[%emt
00:00:13]} 12. g3 {[%clk 00:02:10]} {[%emt 00:00:20]} e6 {[%clk 00:02:03]}
{[%emt 00:00:17]} 13. Bg2 {[%clk 00:02:06]} {[%emt 00:00:07]} exd5 {[%clk
00:01:48]} {[%emt 00:00:17]} 14. cxd5 {[%clk 00:02:06]} {[%emt 00:00:02]} Ra7
{[%clk 00:01:31]} {[%emt 00:00:19]} 15. O-O {[%clk 00:02:00]} {[%emt 00:00:09]}
Rb7 {[%clk 00:01:25]} {[%emt 00:00:08]} 16. Bc3 {[%clk 00:01:50]} {[%emt
00:00:11]} Bd7 {[%clk 00:01:13]} {[%emt 00:00:15]} 17. Rb1 {[%clk 00:01:35]}
{[%emt 00:00:17]} Rxb1 {[%clk 00:01:05]} {[%emt 00:00:10]} 18. Qxb1 {[%clk
00:01:36]} Bb5 {[%clk 00:01:04]} {[%emt 00:00:03]} 19. Re1 {[%clk 00:01:33]}
{[%emt 00:00:05]} Re8 {[%clk 00:01:02]} {[%emt 00:00:04]} 20. e4 {[%clk
00:01:27]} {[%emt 00:00:08]} Nbd7 {[%clk 00:01:02]} {[%emt 00:00:02]} 21. f4
{[%clk 00:01:05]} {[%emt 00:00:23]} Ng4 {[%clk 00:00:25]} {[%emt 00:00:39]} 22.
Bxg7 {[%clk 00:01:02]} {[%emt 00:00:06]} Kxg7 {[%clk 00:00:25]} {[%emt
00:00:01]} 23. h3 {[%clk 00:01:01]} {[%emt 00:00:03]} Ngf6 {[%clk 00:00:23]}
{[%emt 00:00:05]} 24. Qa1 {[%clk 00:01:01]} {[%emt 00:00:02]} Kg8 {[%clk
00:00:23]} {[%emt 00:00:02]} 25. e5 {[%clk 00:00:49]} {[%emt 00:00:15]} Nh5
{[%clk 00:00:17]} {[%emt 00:00:07]} 26. e6 {[%clk 00:00:31]} {[%emt 00:00:20]}
Ndf6 {[%clk 00:00:17]} {[%emt 00:00:02]} 27. Kh2 {[%clk 00:00:23]} {[%emt
00:00:11]} fxe6 {[%clk 00:00:12]} {[%emt 00:00:07]} 28. dxe6 {[%clk 00:00:24]}
d5 {[%clk 00:00:12]} {[%emt 00:00:01]} 29. f5 {[%clk 00:00:22]} {[%emt
00:00:04]} g5 {[%clk 00:00:11]} {[%emt 00:00:04]} 30. Nhf3 {[%clk 00:00:22]}
{[%emt 00:00:02]} g4 {[%clk 00:00:12]} {[%emt 00:00:01]} 31. Ne5 {[%clk
00:00:20]} {[%emt 00:00:04]} gxh3 {[%clk 00:00:04]} {[%emt 00:00:10]} 32. Bxh3
{[%clk 00:00:20]} {[%emt 00:00:02]} Qd6 {[%clk 00:00:05]} {[%emt 00:00:01]} 33.
Ndf3 {[%clk 00:00:16]} {[%emt 00:00:06]} d4 {[%clk 00:00:04]} {[%emt 00:00:03]}
34. Rg1 {[%clk 00:00:15]} {[%emt 00:00:03]} 1-0

[Event "Blixt-SM 2025"]
[Site "Norrköping, Sweden"]
[Date "2025.09.26"]
[Round "4.4"]
[White "Berovski, Krum"]
[Black "Tornberg, Carlos"]
[Result "1-0"]
[TimeControl "3 min + 2 sec/move"]
[WhiteElo "2344"]
[BlackElo "2053"]

1. d4 {[%clk 00:03:02]} {[%emt 00:00:02]} Nf6 {[%clk 00:03:04]} {[%emt
00:00:01]} 2. c4 {[%clk 00:03:03]} e6 {[%clk 00:03:04]} {[%emt 00:00:01]} 3.
Nc3 {[%clk 00:03:03]} {[%emt 00:00:02]} d5 {[%clk 00:03:06]} 4. cxd5 {[%clk
00:03:03]} {[%emt 00:00:02]} exd5 {[%clk 00:03:06]} 5. Bg5 {[%clk 00:03:04]} c6
{[%clk 00:03:07]} {[%emt 00:00:01]} 6. e3 {[%clk 00:03:04]} {[%emt 00:00:02]}
Bd6 {[%clk 00:03:08]} {[%emt 00:00:01]} 7. Bd3 {[%clk 00:02:54]} {[%emt
00:00:13]} O-O {[%clk 00:03:08]} {[%emt 00:00:02]} 8. Qc2 {[%clk 00:02:53]}
{[%emt 00:00:02]} h6 {[%clk 00:03:09]} {[%emt 00:00:02]} 9. Bh4 {[%clk
00:02:54]} Re8 {[%clk 00:03:10]} 10. Nge2 {[%clk 00:02:52]} {[%emt 00:00:03]}
a5 {[%clk 00:03:10]} {[%emt 00:00:02]} 11. Bg3 {[%clk 00:02:47]} {[%emt
00:00:07]} Na6 {[%clk 00:03:07]} {[%emt 00:00:05]} 12. a3 {[%clk 00:02:48]}
{[%emt 00:00:02]} Nc7 {[%clk 00:03:01]} {[%emt 00:00:07]} 13. O-O {[%clk
00:02:44]} {[%emt 00:00:06]} Nh5 {[%clk 00:02:50]} {[%emt 00:00:13]} 14. Bxd6
{[%clk 00:02:40]} {[%emt 00:00:07]} Qxd6 {[%clk 00:02:50]} 15. e4 {[%clk
00:02:12]} {[%emt 00:00:29]} dxe4 {[%clk 00:01:43]} {[%emt 00:01:10]} 16. Nxe4
{[%clk 00:02:13]} {[%emt 00:00:01]} Qd8 {[%clk 00:01:24]} {[%emt 00:00:21]} 17.
Nc5 {[%clk 00:01:52]} {[%emt 00:00:23]} Nd5 {[%clk 00:01:06]} {[%emt 00:00:20]}
18. Rae1 {[%clk 00:01:40]} {[%emt 00:00:14]} b6 {[%clk 00:00:30]} {[%emt
00:00:39]} 19. Ne4 {[%clk 00:01:31]} {[%emt 00:00:10]} Bb7 {[%clk 00:00:22]}
{[%emt 00:00:10]} 20. Bc4 {[%clk 00:01:11]} {[%emt 00:00:22]} Ndf4 {[%clk
00:00:20]} {[%emt 00:00:04]} 21. Nxf4 {[%clk 00:01:08]} {[%emt 00:00:06]} Nxf4
{[%clk 00:00:20]} {[%emt 00:00:02]} 22. Qb3 {[%clk 00:00:50]} {[%emt 00:00:19]}
Qc7 {[%clk 00:00:12]} {[%emt 00:00:11]} 23. g3 {[%clk 00:00:33]} {[%emt
00:00:18]} Nh3+ {[%clk 00:00:11]} {[%emt 00:00:03]} 24. Kg2 {[%clk 00:00:30]}
{[%emt 00:00:05]} b5 {[%clk 00:00:08]} {[%emt 00:00:05]} 25. Bxf7+ {[%clk
00:00:28]} {[%emt 00:00:05]} Qxf7 {[%clk 00:00:08]} {[%emt 00:00:02]} 26. Qxf7+
{[%clk 00:00:29]} Kxf7 {[%clk 00:00:09]} {[%emt 00:00:02]} 27. Nd6+ {[%clk
00:00:30]} {[%emt 00:00:01]} Kg6 {[%clk 00:00:07]} {[%emt 00:00:03]} 28. Rxe8
{[%clk 00:00:29]} {[%emt 00:00:03]} Rxe8 {[%clk 00:00:07]} {[%emt 00:00:02]} 29.
Nxe8 {[%clk 00:00:30]} {[%emt 00:00:01]} Ng5 {[%clk 00:00:08]} {[%emt
00:00:02]} 30. Nd6 {[%clk 00:00:31]} Ba8 {[%clk 00:00:08]} {[%emt 00:00:02]} 31.
Rd1 {[%clk 00:00:28]} {[%emt 00:00:04]} Kf6 {[%clk 00:00:06]} {[%emt 00:00:05]}
32. f4 {[%clk 00:00:27]} {[%emt 00:00:02]} Ne6 {[%clk 00:00:05]} {[%emt
00:00:03]} 33. Ne4+ {[%clk 00:00:28]} {[%emt 00:00:02]} Ke7 {[%clk 00:00:06]}
34. Nc5 {[%clk 00:00:29]} Nc7 {[%clk 00:00:05]} {[%emt 00:00:03]} 35. Kf3
{[%clk 00:00:26]} {[%emt 00:00:05]} Nd5 {[%clk 00:00:05]} {[%emt 00:00:02]} 36.
Re1+ {[%clk 00:00:26]} {[%emt 00:00:02]} Kf7 {[%clk 00:00:05]} {[%emt
00:00:03]} 37. Re5 {[%clk 00:00:25]} {[%emt 00:00:03]} b4 {[%clk 00:00:06]}
{[%emt 00:00:01]} 38. axb4 {[%clk 00:00:25]} {[%emt 00:00:02]} axb4 {[%clk
00:00:07]} {[%emt 00:00:01]} 39. f5 {[%clk 00:00:26]} {[%emt 00:00:01]} Kf6
{[%clk 00:00:04]} {[%emt 00:00:05]} 40. g4 {[%clk 00:00:25]} {[%emt 00:00:03]}
Kf7 {[%clk 00:00:05]} 41. h4 {[%clk 00:00:26]} Nc7 {[%clk 00:00:05]} {[%emt
00:00:03]} 42. g5 {[%clk 00:00:25]} {[%emt 00:00:03]} hxg5 {[%clk 00:00:06]}
{[%emt 00:00:01]} 43. hxg5 {[%clk 00:00:26]} Nb5 {[%clk 00:00:07]} 44. Ke3
{[%clk 00:00:26]} {[%emt 00:00:02]} Nd6 {[%clk 00:00:08]} {[%emt 00:00:02]} 45.
Kf4 {[%clk 00:00:26]} {[%emt 00:00:02]} Bb7 {[%clk 00:00:07]} {[%emt 00:00:03]}
46. g6+ {[%clk 00:00:26]} {[%emt 00:00:02]} Kf8 {[%clk 00:00:07]} {[%emt
00:00:01]} 47. Re6 {[%clk 00:00:25]} {[%emt 00:00:03]} 1-0

[Event "Blixt-SM 2025"]
[Site "Norrköping, Sweden"]
[Date "2025.09.26"]
[Round "5.10"]
[White "Bergdahl, Martin"]
[Black "Muntean, Victor"]
[Result "0-1"]
[TimeControl "3 min + 2 sec/move"]
[WhiteElo "1954"]
[BlackElo "2151"]

1. e4 {[%clk 00:03:02]} e5 {[%clk 00:03:03]} {[%emt 00:00:02]} 2. Nf3 {[%clk
00:03:02]} {[%emt 00:00:02]} Nc6 {[%clk 00:03:05]} {[%emt 00:00:01]} 3. Bb5
{[%clk 00:03:02]} {[%emt 00:00:02]} a6 {[%clk 00:03:06]} {[%emt 00:00:01]} 4.
Ba4 {[%clk 00:03:04]} f5 {[%clk 00:03:07]} 5. d3 {[%clk 00:03:02]} {[%emt
00:00:04]} fxe4 {[%clk 00:03:07]} {[%emt 00:00:01]} 6. dxe4 {[%clk 00:03:02]}
{[%emt 00:00:02]} Nf6 {[%clk 00:03:08]} 7. O-O {[%clk 00:03:02]} {[%emt
00:00:03]} d6 {[%clk 00:03:09]} {[%emt 00:00:01]} 8. Nc3 {[%clk 00:02:52]}
{[%emt 00:00:12]} Be7 {[%clk 00:03:09]} {[%emt 00:00:02]} 9. Bb3 {[%clk
00:02:47]} {[%emt 00:00:06]} Na5 {[%clk 00:03:10]} {[%emt 00:00:02]} 10. Re1
{[%clk 00:02:37]} {[%emt 00:00:11]} Nxb3 {[%clk 00:03:08]} {[%emt 00:00:05]} 11.
axb3 {[%clk 00:02:38]} {[%emt 00:00:01]} O-O {[%clk 00:03:08]} {[%emt
00:00:02]} 12. Nd5 {[%clk 00:02:38]} {[%emt 00:00:01]} c6 {[%clk 00:03:04]}
{[%emt 00:00:07]} 13. Nxe7+ {[%clk 00:02:37]} {[%emt 00:00:03]} Qxe7 {[%clk
00:03:04]} {[%emt 00:00:01]} 14. Bg5 {[%clk 00:02:37]} {[%emt 00:00:02]} h6
{[%clk 00:03:04]} {[%emt 00:00:03]} 15. Bh4 {[%clk 00:02:34]} {[%emt 00:00:04]}
Bg4 {[%clk 00:03:02]} {[%emt 00:00:04]} 16. Qd3 {[%clk 00:02:31]} {[%emt
00:00:06]} Qe6 {[%clk 00:02:56]} {[%emt 00:00:08]} 17. Rad1 {[%clk 00:02:17]}
{[%emt 00:00:15]} Rad8 {[%clk 00:02:52]} {[%emt 00:00:06]} 18. Bg3 {[%clk
00:02:08]} {[%emt 00:00:11]} Nh5 {[%clk 00:02:45]} {[%emt 00:00:10]} 19. Re3
{[%clk 00:01:31]} {[%emt 00:00:39]} Nf4 {[%clk 00:02:36]} {[%emt 00:00:12]} 20.
Bxf4 {[%clk 00:01:27]} {[%emt 00:00:04]} Rxf4 {[%clk 00:02:34]} {[%emt
00:00:05]} 21. Qc4 {[%clk 00:01:27]} {[%emt 00:00:02]} d5 {[%clk 00:02:08]}
{[%emt 00:00:28]} 22. exd5 {[%clk 00:01:27]} {[%emt 00:00:02]} Rxc4 {[%clk
00:02:07]} {[%emt 00:00:03]} 23. dxe6 {[%clk 00:01:27]} {[%emt 00:00:01]} Rxd1+
{[%clk 00:02:08]} {[%emt 00:00:02]} 24. Ne1 {[%clk 00:01:21]} {[%emt 00:00:07]}
Bxe6 {[%clk 00:02:05]} {[%emt 00:00:06]} 25. bxc4 {[%clk 00:01:21]} {[%emt
00:00:02]} Bxc4 {[%clk 00:01:45]} {[%emt 00:00:22]} 26. h3 {[%clk 00:01:11]}
{[%emt 00:00:11]} a5 {[%clk 00:01:18]} {[%emt 00:00:30]} 27. Rxe5 {[%clk
00:01:09]} {[%emt 00:00:04]} a4 {[%clk 00:01:17]} {[%emt 00:00:04]} 28. Kh2
{[%clk 00:01:07]} {[%emt 00:00:02]} Rb1 {[%clk 00:01:14]} {[%emt 00:00:06]} 29.
Nf3 {[%clk 00:00:10]} {[%emt 00:01:00]} Rxb2 {[%clk 00:01:11]} {[%emt
00:00:05]} 30. Nd4 {[%clk 00:00:10]} {[%emt 00:00:02]} a3 {[%clk 00:01:05]}
{[%emt 00:00:08]} 31. Ra5 {[%clk 00:00:10]} {[%emt 00:00:01]} a2 {[%clk
00:01:05]} {[%emt 00:00:01]} 32. Ra8+ {[%clk 00:00:06]} {[%emt 00:00:06]} Kf7
{[%clk 00:01:05]} {[%emt 00:00:02]} 33. Ra7 {[%clk 00:00:06]} {[%emt 00:00:01]}
Rb1 {[%clk 00:01:02]} {[%emt 00:00:05]} 0-1

[Event "Blixt-SM 2025"]
[Site "Norrköping, Sweden"]
[Date "2025.09.26"]
[Round "7.6"]
[White "Olsson, Linus"]
[Black "Bohman Karlholm, Adrian"]
[Result "1-0"]
[TimeControl "3 min + 2 sec/move"]
[WhiteTitle "FM"]
[WhiteElo "2166"]
[BlackElo "2102"]

1. d4 {[%clk 00:03:03]} {[%emt 00:18:33]} Nf6 {[%clk 00:03:02]} {[%emt
00:00:02]} 2. c4 {[%clk 00:03:04]} {[%emt 00:00:02]} b6 {[%clk 00:03:04]}
{[%emt 00:00:01]} 3. Nc3 {[%clk 00:03:04]} {[%emt 00:00:02]} Bb7 {[%clk
00:03:04]} 4. e3 {[%clk 00:02:55]} {[%emt 00:00:11]} e6 {[%clk 00:03:03]}
{[%emt 00:00:03]} 5. f3 {[%clk 00:02:55]} {[%emt 00:00:01]} d5 {[%clk
00:03:00]} {[%emt 00:00:06]} 6. Bd3 {[%clk 00:02:53]} {[%emt 00:00:04]} c5
{[%clk 00:02:54]} {[%emt 00:00:07]} 7. Nge2 {[%clk 00:02:51]} Nc6 {[%clk
00:02:54]} {[%emt 00:00:07]} 8. O-O {[%emt 00:00:30]} cxd4 {[%clk 00:02:52]} 9.
exd4 {[%clk 00:02:22]} {[%emt 00:00:07]} Be7 {[%clk 00:02:47]} {[%emt
00:00:07]} 10. Be3 {[%clk 00:02:13]} {[%emt 00:00:11]} O-O {[%clk 00:02:38]}
{[%emt 00:00:10]} 11. a3 {[%clk 00:02:10]} {[%emt 00:00:06]} Rc8 {[%clk
00:02:35]} {[%emt 00:00:05]} 12. cxd5 {[%clk 00:01:42]} {[%emt 00:00:30]} Nxd5
{[%clk 00:02:30]} {[%emt 00:00:07]} 13. Bf2 {[%clk 00:01:43]} {[%emt 00:00:02]}
Bf6 {[%clk 00:02:23]} {[%emt 00:00:10]} 14. Ne4 {[%clk 00:01:40]} {[%emt
00:00:04]} Be7 {[%clk 00:02:12]} {[%emt 00:00:13]} 15. Rc1 {[%clk 00:01:21]} g6
{[%clk 00:02:04]} {[%emt 00:00:31]} 16. Qa4 {[%clk 00:01:18]} a6 {[%clk
00:01:45]} {[%emt 00:00:26]} 17. b4 {[%clk 00:01:13]} {[%emt 00:00:07]} b5
{[%clk 00:01:43]} {[%emt 00:00:04]} 18. Qb3 {[%clk 00:01:12]} {[%emt 00:00:03]}
Qd7 {[%clk 00:01:28]} {[%emt 00:00:18]} 19. Rfd1 {[%clk 00:01:11]} {[%emt
00:00:03]} Rfd8 {[%clk 00:01:18]} {[%emt 00:00:11]} 20. Bb1 {[%clk 00:01:08]}
{[%emt 00:00:05]} Nf6 {[%clk 00:01:03]} {[%emt 00:00:16]} 21. Nc5 {[%clk
00:01:06]} {[%emt 00:00:05]} Bxc5 {[%clk 00:00:58]} {[%emt 00:00:07]} 22. dxc5
{[%clk 00:01:06]} {[%emt 00:00:02]} Qe7 {[%clk 00:00:52]} {[%emt 00:00:08]} 23.
Bh4 {[%clk 00:01:01]} {[%emt 00:00:07]} Kg7 {[%clk 00:00:44]} {[%emt 00:00:10]}
24. Qb2 {[%clk 00:00:56]} {[%emt 00:00:08]} h6 {[%clk 00:00:35]} {[%emt
00:00:10]} 25. f4 {[%clk 00:00:57]} Rxd1+ {[%clk 00:00:20]} {[%emt 00:00:17]}
26. Rxd1 {[%clk 00:00:58]} {[%emt 00:00:01]} Rd8 {[%clk 00:00:22]} 27. Rd6
{[%clk 00:00:58]} {[%emt 00:00:02]} g5 {[%clk 00:00:11]} {[%emt 00:00:12]} 28.
fxg5 {[%clk 00:00:58]} {[%emt 00:00:02]} 1-0

[Event "Blixt-SM 2025"]
[Site "Norrköping, Sweden"]
[Date "2025.09.26"]
[Round "9.2"]
[White "Karlsson, Stefan 2005"]
[Black "Olsson, Linus"]
[Result "0-1"]
[TimeControl "3 min + 2 sec/move"]
[BlackTitle "FM"]
[WhiteElo "2112"]
[BlackElo "2166"]

1. d3 {[%clk 00:03:02]} {[%emt 00:00:01]} c5 {[%clk 00:02:55]} {[%emt
00:00:09]} 2. g3 {[%clk 00:02:56]} {[%emt 00:00:09]} Nc6 {[%clk 00:02:55]}
{[%emt 00:00:02]} 3. Bg2 {[%clk 00:02:56]} {[%emt 00:00:02]} g6 {[%clk
00:02:55]} {[%emt 00:00:02]} 4. Nd2 {[%clk 00:02:53]} {[%emt 00:00:05]} Bg7
{[%clk 00:02:56]} {[%emt 00:00:02]} 5. e4 {[%clk 00:02:54]} e6 {[%clk
00:02:55]} {[%emt 00:00:03]} 6. Nh3 {[%clk 00:02:54]} Nge7 {[%clk 00:02:56]}
{[%emt 00:00:02]} 7. O-O {[%clk 00:02:55]} {[%emt 00:00:02]} O-O {[%clk
00:02:55]} {[%emt 00:00:03]} 8. c3 {[%clk 00:02:53]} {[%emt 00:00:04]} Rb8
{[%clk 00:02:53]} {[%emt 00:00:04]} 9. a4 {[%clk 00:02:53]} {[%emt 00:00:01]}
a6 {[%clk 00:02:54]} {[%emt 00:00:02]} 10. Nb3 {[%clk 00:02:32]} {[%emt
00:00:22]} d6 {[%clk 00:02:50]} {[%emt 00:00:07]} 11. d4 {[%clk 00:02:30]}
{[%emt 00:00:03]} cxd4 {[%clk 00:02:47]} {[%emt 00:00:05]} 12. cxd4 {[%clk
00:02:31]} b5 {[%clk 00:02:44]} {[%emt 00:00:06]} 13. axb5 {[%clk 00:02:32]}
{[%emt 00:00:01]} Rxb5 {[%clk 00:02:36]} {[%emt 00:00:09]} 14. Be3 {[%clk
00:02:17]} {[%emt 00:00:17]} Qc7 {[%clk 00:02:14]} {[%emt 00:00:25]} 15. Re1
{[%clk 00:01:56]} {[%emt 00:00:21]} Qb8 {[%clk 00:02:14]} {[%emt 00:00:04]} 16.
Ra3 {[%clk 00:01:55]} {[%emt 00:00:03]} Bd7 {[%clk 00:01:49]} {[%emt 00:00:26]}
17. Bf1 {[%clk 00:01:45]} {[%emt 00:00:11]} Rb4 {[%clk 00:01:41]} {[%emt
00:00:11]} 18. Bxa6 {[%clk 00:01:19]} {[%emt 00:00:27]} e5 {[%clk 00:01:42]}
{[%emt 00:00:02]} 19. d5 {[%clk 00:01:04]} {[%emt 00:00:16]} Nd4 {[%clk
00:01:41]} {[%emt 00:00:03]} 20. Nxd4 {[%clk 00:01:02]} {[%emt 00:00:04]} exd4
{[%clk 00:01:41]} {[%emt 00:00:02]} 21. Bc1 {[%clk 00:01:02]} {[%emt 00:00:03]}
Bxh3 {[%clk 00:01:42]} {[%emt 00:00:01]} 22. g4 {[%clk 00:00:57]} {[%emt
00:00:06]} d3 {[%clk 00:01:07]} {[%emt 00:00:38]} 23. Rxd3 {[%clk 00:00:48]}
{[%emt 00:00:11]} Qb6 {[%clk 00:01:01]} {[%emt 00:00:08]} 24. Ra3 {[%clk
00:00:32]} {[%emt 00:00:17]} Bxb2 {[%clk 00:00:58]} {[%emt 00:00:06]} 25. Bxb2
{[%clk 00:00:33]} {[%emt 00:00:01]} Rxb2 {[%clk 00:00:59]} 26. Be2 {[%clk
00:00:17]} {[%emt 00:00:18]} Bxg4 {[%clk 00:00:58]} {[%emt 00:00:03]} 27. Bxg4
{[%clk 00:00:17]} Qxf2+ {[%clk 00:00:59]} {[%emt 00:00:01]} 0-1

[Event "Blixt-SM 2025"]
[Site "Norrköping, Sweden"]
[Date "2025.09.26"]
[Round "10.8"]
[White "Bohman Karlholm, Adrian"]
[Black "Wernberg, Hugo"]
[Result "1/2-1/2"]
[TimeControl "3 min + 2 sec/move"]
[BlackTitle "FM"]
[WhiteElo "2102"]
[BlackElo "2285"]

1. d4 {[%clk 00:03:03]} Nf6 {[%clk 00:03:04]} 2. c4 {[%clk 00:03:04]} {[%emt
00:00:01]} c5 {[%clk 00:03:05]} 3. d5 {[%clk 00:03:05]} b5 {[%clk 00:03:06]} 4.
cxb5 {[%clk 00:03:06]} {[%emt 00:00:01]} a6 {[%clk 00:03:08]} 5. bxa6 {[%clk
00:03:06]} {[%emt 00:00:02]} Bxa6 {[%clk 00:03:09]} {[%emt 00:00:02]} 6. Nc3
{[%clk 00:03:07]} {[%emt 00:00:01]} d6 {[%clk 00:03:10]} 7. Nf3 {[%clk
00:03:08]} g6 {[%clk 00:03:11]} {[%emt 00:00:02]} 8. g3 {[%clk 00:03:09]} Nbd7
{[%clk 00:03:10]} {[%emt 00:00:03]} 9. Bg2 {[%clk 00:03:09]} {[%emt 00:00:02]}
Nb6 {[%clk 00:03:10]} {[%emt 00:00:02]} 10. b3 {[%clk 00:03:03]} {[%emt
00:00:09]} Bg7 {[%clk 00:03:10]} {[%emt 00:00:02]} 11. Rb1 {[%clk 00:03:02]}
{[%emt 00:00:03]} O-O {[%clk 00:03:06]} {[%emt 00:00:05]} 12. O-O {[%clk
00:03:01]} {[%emt 00:00:03]} Bb7 {[%clk 00:03:07]} {[%emt 00:00:02]} 13. e4
{[%clk 00:02:57]} {[%emt 00:00:05]} e6 {[%clk 00:02:58]} {[%emt 00:00:11]} 14.
dxe6 {[%clk 00:02:50]} {[%emt 00:00:09]} fxe6 {[%clk 00:02:59]} 15. Re1 {[%clk
00:02:31]} {[%emt 00:00:21]} Re8 {[%clk 00:02:30]} {[%emt 00:00:31]} 16. Bf4
{[%clk 00:02:26]} {[%emt 00:00:07]} Nh5 {[%clk 00:02:19]} {[%emt 00:00:13]} 17.
Bd2 {[%clk 00:02:25]} {[%emt 00:00:03]} d5 {[%clk 00:01:19]} {[%emt 00:01:03]}
18. exd5 {[%clk 00:02:21]} {[%emt 00:00:06]} exd5 {[%clk 00:01:20]} 19. Rxe8+
{[%clk 00:01:55]} {[%emt 00:00:28]} Qxe8 {[%clk 00:01:21]} {[%emt 00:00:01]} 20.
a4 {[%clk 00:01:51]} {[%emt 00:00:06]} Qf7 {[%clk 00:00:56]} {[%emt 00:00:27]}
21. Nb5 {[%clk 00:01:40]} {[%emt 00:00:13]} Bc6 {[%clk 00:00:55]} {[%emt
00:00:03]} 22. Ng5 {[%clk 00:01:28]} {[%emt 00:00:15]} Qf6 {[%clk 00:00:32]}
{[%emt 00:00:25]} 23. Qf3 {[%clk 00:00:57]} {[%emt 00:00:32]} Re8 {[%clk
00:00:23]} {[%emt 00:00:11]} 24. Qxf6 {[%clk 00:00:51]} {[%emt 00:00:09]} Nxf6
{[%clk 00:00:22]} {[%emt 00:00:03]} 25. Be3 {[%clk 00:00:47]} {[%emt 00:00:06]}
Bxb5 {[%clk 00:00:16]} {[%emt 00:00:09]} 26. axb5 {[%clk 00:00:47]} Nbd7 {[%clk
00:00:17]} 27. Bf4 {[%clk 00:00:38]} {[%emt 00:00:11]} h6 {[%clk 00:00:10]}
{[%emt 00:00:09]} 28. Nf3 {[%clk 00:00:34]} {[%emt 00:00:06]} g5 {[%clk
00:00:11]} {[%emt 00:00:02]} 29. Bc7 {[%clk 00:00:34]} {[%emt 00:00:02]} Ne4
{[%clk 00:00:11]} {[%emt 00:00:01]} 30. b6 {[%clk 00:00:30]} {[%emt 00:00:06]}
Nc3 {[%clk 00:00:09]} {[%emt 00:00:04]} 31. Re1 {[%clk 00:00:27]} {[%emt
00:00:05]} Rf8 {[%clk 00:00:04]} {[%emt 00:00:07]} 32. Re7 {[%clk 00:00:14]}
{[%emt 00:00:14]} Nxb6 {[%clk 00:00:03]} {[%emt 00:00:04]} 33. Bxb6 {[%clk
00:00:15]} {[%emt 00:00:01]} Rc8 {[%clk 00:00:04]} {[%emt 00:00:02]} 34. Rc7
{[%clk 00:00:12]} {[%emt 00:00:04]} Rb8 {[%clk 00:00:05]} {[%emt 00:00:01]} 35.
Rc6 {[%clk 00:00:10]} {[%emt 00:00:05]} d4 {[%clk 00:00:03]} {[%emt 00:00:03]}
36. Bxc5 {[%clk 00:00:10]} {[%emt 00:00:03]} Rxb3 {[%clk 00:00:04]} 37. Bxd4
{[%clk 00:00:11]} Rb1+ {[%clk 00:00:05]} 38. Bf1 {[%clk 00:00:10]} {[%emt
00:00:03]} Ne2+ {[%clk 00:00:06]} 39. Kg2 {[%clk 00:00:11]} Nxd4 {[%clk
00:00:07]} {[%emt 00:00:02]} 40. Nxd4 {[%clk 00:00:12]} Bxd4 {[%clk 00:00:09]}
{[%emt 00:00:01]} 41. Rc2 {[%clk 00:00:08]} {[%emt 00:00:06]} Rb2 {[%clk
00:00:09]} {[%emt 00:00:01]} 42. Rxb2 {[%clk 00:00:08]} {[%emt 00:00:03]} Bxb2
{[%clk 00:00:10]} 43. Kf3 {[%clk 00:00:09]} {[%emt 00:00:01]} Kg7 {[%clk
00:00:12]} 44. Kg4 {[%clk 00:00:08]} {[%emt 00:00:03]} Bd4 {[%clk 00:00:13]} 45.
f3 {[%clk 00:00:07]} {[%emt 00:00:03]} Be5 {[%clk 00:00:14]} 46. Bd3 {[%clk
00:00:08]} Bb8 {[%clk 00:00:15]} 47. f4 {[%clk 00:00:09]} {[%emt 00:00:02]}
gxf4 {[%clk 00:00:16]} 48. gxf4 {[%clk 00:00:10]} Bc7 {[%clk 00:00:17]} 49. h4
{[%clk 00:00:10]} {[%emt 00:00:02]} Bd8 {[%clk 00:00:19]} 50. h5 {[%clk
00:00:11]} {[%emt 00:00:02]} Bf6 {[%clk 00:00:20]} 51. Kf5 {[%clk 00:00:12]}
Bd4 {[%clk 00:00:21]} {[%emt 00:00:01]} 52. Ke6 {[%clk 00:00:12]} {[%emt
00:00:01]} Bf6 {[%clk 00:00:22]} 1/2-1/2